[Event "Live Chess"]
[Site "Chess.com"]
[Date "2024.06.02"]
[Round "-"]
[White "TigerTank70"]
[Black "lateforthesky"]
[Result "1-0"]
[WhiteElo "2187"]
[BlackElo "2068"]
[TimeControl "300"]
[EndTime "7:16:14 PDT"]
[Termination "TigerTank70 won by checkmate"]

1. e4 {[%clk 0:04:54.3]} 1... c5 {[%clk 0:04:58.5]} 2. d4 {[%clk 0:04:52.2]}
2... cxd4 {[%clk 0:04:56.7]} 3. c3 {[%clk 0:04:50.2]} 3... dxc3 {[%clk
0:04:55.9]} 4. Nxc3 {[%clk 0:04:49.6]} 4... Nc6 {[%clk 0:04:55.4]} 5. Nf3 {[%clk
0:04:47.6]} 5... a6 {[%clk 0:04:52.5]} 6. Bc4 {[%clk 0:04:46.4]} 6... e6 {[%clk
0:04:51.9]} 7. Qe2 {[%clk 0:04:44.9]} 7... b5 {[%clk 0:04:50.8]} 8. Bb3 {[%clk
0:04:42.3]} 8... Na5 {[%clk 0:04:49]} 9. Bc2 {[%clk 0:04:40.4]} 9... Bb7 {[%clk
0:04:47.4]} 10. O-O {[%clk 0:04:37.4]} 10... Nf6 {[%clk 0:04:45.2]} 11. Bg5
{[%clk 0:04:34.4]} 11... Be7 {[%clk 0:04:43.4]} 12. Rfd1 {[%clk 0:04:28.8]}
12... h6 {[%clk 0:04:37.7]} 13. Bh4 {[%clk 0:04:25.4]} 13... O-O {[%clk
0:04:35.3]} 14. Bxf6 {[%clk 0:04:20]} 14... Bxf6 {[%clk 0:04:33.5]} 15. Qd3
{[%clk 0:04:12.9]} 15... Rc8 {[%clk 0:04:09.2]} 16. e5 {[%clk 0:04:10.1]} 16...
Be7 {[%clk 0:04:04.9]} 17. Qh7# {[%clk 0:04:07.4]} 1-0

[Event "Live Chess"]
[Site "Chess.com"]
[Date "2024.06.02"]
[Round "-"]
[White "Mikhail_Golubev"]
[Black "NAZRIZ1977"]
[Result "1-0"]
[WhiteElo "2493"]
[BlackElo "2066"]
[TimeControl "300"]
[EndTime "7:16:17 PDT"]
[Termination "Mikhail_Golubev won by checkmate"]

1. e4 {[%clk 0:04:57.5]} 1... c5 {[%clk 0:04:58.2]} 2. Nf3 {[%clk 0:04:56.2]}
2... d6 {[%clk 0:04:57.2]} 3. d4 {[%clk 0:04:55]} 3... cxd4 {[%clk 0:04:56.2]}
4. Nxd4 {[%clk 0:04:53.8]} 4... Nf6 {[%clk 0:04:55.5]} 5. Nc3 {[%clk 0:04:52.8]}
5... g6 {[%clk 0:04:02]} 6. Be3 {[%clk 0:04:50.2]} 6... Bg7 {[%clk 0:04:01]} 7.
f3 {[%clk 0:04:49.3]} 7... O-O {[%clk 0:04:00.1]} 8. Qd2 {[%clk 0:04:48.3]} 8...
Nc6 {[%clk 0:03:59]} 9. Bc4 {[%clk 0:04:46.1]} 9... Bd7 {[%clk 0:03:57.9]} 10.
h4 {[%clk 0:04:41.5]} 10... Rc8 {[%clk 0:03:51.6]} 11. Nxc6 {[%clk 0:04:39.2]}
11... Bxc6 {[%clk 0:03:26]} 12. Bb3 {[%clk 0:03:51]} 12... h5 {[%clk 0:03:10.2]}
13. g4 {[%clk 0:03:40.2]} 13... hxg4 {[%clk 0:03:07.6]} 14. h5 {[%clk
0:03:31.1]} 14... Nxh5 {[%clk 0:02:53.1]} 15. fxg4 {[%clk 0:01:45.2]} 15... Ng3
{[%clk 0:02:51.1]} 16. O-O-O {[%clk 0:01:39.3]} 16... Bd7 {[%clk 0:02:41.1]} 17.
Qh2 {[%clk 0:01:25.8]} 17... Nxh1 {[%clk 0:02:01]} 18. Rxh1 {[%clk 0:01:23.6]}
18... Re8 {[%clk 0:02:00.9]} 19. Qh7+ {[%clk 0:01:21.4]} 19... Kf8 {[%clk
0:02:00.3]} 20. Bh6 {[%clk 0:01:18.6]} 20... e6 {[%clk 0:01:59.4]} 21. Qxg7+
{[%clk 0:01:15.9]} 21... Ke7 {[%clk 0:01:58.7]} 22. Bg5# {[%clk 0:01:15.4]} 1-0

[Event "Live Chess"]
[Site "Chess.com"]
[Date "2024.06.02"]
[Round "-"]
[White "DylanMeyer1"]
[Black "Larchikov"]
[Result "0-1"]
[WhiteElo "1725"]
[BlackElo "2091"]
[TimeControl "300"]
[EndTime "7:16:19 PDT"]
[Termination "Larchikov won by resignation"]

1. c4 {[%clk 0:04:58.2]} 1... Nf6 {[%clk 0:04:54.5]} 2. Nc3 {[%clk 0:04:57.7]}
2... g6 {[%clk 0:04:53.7]} 3. g3 {[%clk 0:04:57.2]} 3... Bg7 {[%clk 0:04:53.2]}
4. Bg2 {[%clk 0:04:56.8]} 4... O-O {[%clk 0:04:52.8]} 5. e3 {[%clk 0:04:55.5]}
5... c6 {[%clk 0:04:52.5]} 6. Nge2 {[%clk 0:04:55.1]} 6... d5 {[%clk 0:04:52.2]}
7. cxd5 {[%clk 0:04:54.3]} 7... cxd5 {[%clk 0:04:52.1]} 8. d4 {[%clk 0:04:53.8]}
8... Nc6 {[%clk 0:04:49.6]} 9. O-O {[%clk 0:04:53.7]} 9... a6 {[%clk 0:04:43.8]}
10. a3 {[%clk 0:04:52.1]} 10... b5 {[%clk 0:04:42.5]} 11. b4 {[%clk 0:04:51.3]}
11... Bb7 {[%clk 0:04:40.2]} 12. Bb2 {[%clk 0:04:50.6]} 12... Rc8 {[%clk
0:04:34.6]} 13. Rc1 {[%clk 0:04:49.9]} 13... e6 {[%clk 0:04:30.7]} 14. Nf4
{[%clk 0:04:48.4]} 14... Qb6 {[%clk 0:04:22.8]} 15. Nd3 {[%clk 0:04:47.3]} 15...
a5 {[%clk 0:04:17.3]} 16. Nc5 {[%clk 0:04:44.5]} 16... axb4 {[%clk 0:04:14.1]}
17. axb4 {[%clk 0:04:40.8]} 17... Nxb4 {[%clk 0:04:12.3]} 18. Nxb7 {[%clk
0:04:34.7]} 18... Qxb7 {[%clk 0:04:09.6]} 19. Qb3 {[%clk 0:04:34]} 19... Na6
{[%clk 0:03:58]} 20. Ra1 {[%clk 0:04:14.4]} 20... b4 {[%clk 0:03:46.2]} 21. Na4
{[%clk 0:04:07.7]} 21... Nd7 {[%clk 0:03:43.1]} 22. Rfc1 {[%clk 0:04:04.2]}
22... Rxc1+ {[%clk 0:03:39.8]} 23. Bxc1 {[%clk 0:03:52]} 23... Rc8 {[%clk
0:03:34.1]} 24. Bf1 {[%clk 0:03:49.5]} 24... Nac5 {[%clk 0:03:17.3]} 25. Qb1
{[%clk 0:02:43.1]} 25... Nxa4 {[%clk 0:03:06.6]} 26. Rxa4 {[%clk 0:02:41.2]}
26... Qc6 {[%clk 0:03:04.6]} 27. Rxb4 {[%clk 0:02:11.5]} 27... Qxc1 {[%clk
0:03:00.9]} 28. Qb3 {[%clk 0:02:11]} 28... Bf8 {[%clk 0:02:54.3]} 29. Rb8 {[%clk
0:02:09.3]} 29... Rxb8 {[%clk 0:02:51.8]} 30. Qxb8 {[%clk 0:02:09.2]} 30... Nxb8
{[%clk 0:02:51.1]} 0-1

[Event "Live Chess"]
[Site "Chess.com"]
[Date "2024.06.02"]
[Round "-"]
[White "GerardATHart"]
[Black "degringolade64"]
[Result "1-0"]
[WhiteElo "1393"]
[BlackElo "2070"]
[TimeControl "300"]
[EndTime "7:16:44 PDT"]
[Termination "GerardATHart won on time"]

1. e4 {[%clk 0:04:56]} 1... e5 {[%clk 0:04:58.9]} 2. Nf3 {[%clk 0:04:53.9]} 2...
Nc6 {[%clk 0:04:58.1]} 3. Bb5 {[%clk 0:04:43.9]} 3... a6 {[%clk 0:04:51]} 4. Ba4
{[%clk 0:04:39.9]} 4... Nf6 {[%clk 0:04:49.2]} 5. d3 {[%clk 0:04:37.5]} 5... b5
{[%clk 0:04:46.9]} 6. Bb3 {[%clk 0:04:36.3]} 6... Bc5 {[%clk 0:04:46.6]} 7. c3
{[%clk 0:04:34.9]} 7... d6 {[%clk 0:04:41.6]} 8. O-O {[%clk 0:04:32.3]} 8... h6
{[%clk 0:04:39.6]} 9. h3 {[%clk 0:04:13.6]} 9... Bb6 {[%clk 0:04:37.7]} 10. Nbd2
{[%clk 0:04:11.7]} 10... O-O {[%clk 0:04:35.3]} 11. Re1 {[%clk 0:04:10.4]} 11...
Ne7 {[%clk 0:04:33.1]} 12. Nf1 {[%clk 0:04:09.4]} 12... Ng6 {[%clk 0:04:31.4]}
13. Ng3 {[%clk 0:04:07]} 13... Re8 {[%clk 0:04:26.4]} 14. d4 {[%clk 0:03:59.6]}
14... Bb7 {[%clk 0:04:20.5]} 15. d5 {[%clk 0:03:54.3]} 15... c6 {[%clk
0:04:01.3]} 16. a4 {[%clk 0:03:52.4]} 16... cxd5 {[%clk 0:03:58.1]} 17. axb5
{[%clk 0:03:50.5]} 17... axb5 {[%clk 0:03:56.6]} 18. Rxa8 {[%clk 0:03:48.1]}
18... Qxa8 {[%clk 0:03:55.5]} 19. exd5 {[%clk 0:03:41.5]} 19... Bxd5 {[%clk
0:03:51.2]} 20. Bxd5 {[%clk 0:03:37.9]} 20... Qxd5 {[%clk 0:03:48.2]} 21. Qxd5
{[%clk 0:03:27.5]} 21... Nxd5 {[%clk 0:03:48.1]} 22. Rd1 {[%clk 0:03:21.5]}
22... e4 {[%clk 0:02:37.8]} 23. Rxd5 {[%clk 0:03:03.6]} 23... exf3 {[%clk
0:02:36.2]} 24. Rxd6 {[%clk 0:03:01.9]} 24... Re1+ {[%clk 0:02:33.3]} 25. Nf1
{[%clk 0:02:57.4]} 25... fxg2 {[%clk 0:02:25.6]} 26. Kxg2 {[%clk 0:02:49.6]}
26... Nh4+ {[%clk 0:02:11.8]} 27. Kg1 {[%clk 0:02:35.9]} 27... Bxf2+ {[%clk
0:01:17.1]} 28. Kxf2 {[%clk 0:02:33.7]} 28... Rxc1 {[%clk 0:01:16.7]} 29. Nd2
{[%clk 0:02:14.7]} 29... Rc2 {[%clk 0:01:13.9]} 30. Ke2 {[%clk 0:02:05.9]} 30...
Rxb2 {[%clk 0:01:12.3]} 31. Rb6 {[%clk 0:01:45.3]} 31... Ng6 {[%clk 0:01:09]}
32. c4 {[%clk 0:01:43]} 32... Nf4+ {[%clk 0:01:07.2]} 33. Ke3 {[%clk 0:01:39.1]}
33... Rxd2 {[%clk 0:00:45]} 34. Kxd2 {[%clk 0:01:34.6]} 34... bxc4 {[%clk
0:00:44.2]} 35. Rb4 {[%clk 0:01:31.6]} 35... Nxh3 {[%clk 0:00:42.9]} 36. Rxc4
{[%clk 0:01:30.1]} 36... Ng5 {[%clk 0:00:40.3]} 37. Ke2 {[%clk 0:01:28.3]} 37...
g6 {[%clk 0:00:36.8]} 38. Kf2 {[%clk 0:01:26.7]} 38... Kg7 {[%clk 0:00:36.4]}
39. Kg2 {[%clk 0:01:25.2]} 39... h5 {[%clk 0:00:35.4]} 40. Kg3 {[%clk
0:01:21.5]} 40... Ne6 {[%clk 0:00:34.4]} 41. Ra4 {[%clk 0:01:16.1]} 41... g5
{[%clk 0:00:33.7]} 42. Kg2 {[%clk 0:01:12.5]} 42... Kg6 {[%clk 0:00:33.6]} 43.
Kg3 {[%clk 0:01:06.1]} 43... h4+ {[%clk 0:00:32.2]} 44. Kg4 {[%clk 0:01:04.3]}
44... f5+ {[%clk 0:00:30.9]} 45. Kh3 {[%clk 0:01:01.9]} 45... Nf4+ {[%clk
0:00:27.7]} 46. Kh2 {[%clk 0:00:59.8]} 46... Kh5 {[%clk 0:00:26.9]} 47. Ra5
{[%clk 0:00:57.5]} 47... Kg4 {[%clk 0:00:25.8]} 48. Ra4 {[%clk 0:00:55.5]} 48...
h3 {[%clk 0:00:21.2]} 49. Rb4 {[%clk 0:00:52.4]} 49... Kh4 {[%clk 0:00:20.2]}
50. Ra4 {[%clk 0:00:50]} 50... Kh5 {[%clk 0:00:19.4]} 51. Kg3 {[%clk 0:00:48]}
51... Ng6 {[%clk 0:00:18.8]} 52. Kxh3 {[%clk 0:00:46.3]} 52... f4 {[%clk
0:00:17.8]} 53. Kh2 {[%clk 0:00:42.5]} 53... g4 {[%clk 0:00:17.3]} 54. Kg2
{[%clk 0:00:39.5]} 54... Kh4 {[%clk 0:00:16.9]} 55. Kh1 {[%clk 0:00:33.7]} 55...
f3 {[%clk 0:00:16.2]} 56. Kg1 {[%clk 0:00:32.5]} 56... Ne5 {[%clk 0:00:14.9]}
57. Kf2 {[%clk 0:00:29.5]} 57... Nd3+ {[%clk 0:00:14]} 58. Kg1 {[%clk
0:00:27.8]} 58... Nc5 {[%clk 0:00:11.4]} 59. Rc4 {[%clk 0:00:26.1]} 59... Ne6
{[%clk 0:00:10.4]} 60. Kf2 {[%clk 0:00:24.7]} 60... Ng5 {[%clk 0:00:09.9]} 61.
Kg1 {[%clk 0:00:22.5]} 61... Nh3+ {[%clk 0:00:09.8]} 62. Kh2 {[%clk 0:00:20.7]}
62... f2 {[%clk 0:00:08.4]} 63. Kg2 {[%clk 0:00:19.5]} 63... Kg5 {[%clk
0:00:05.1]} 64. Rc5+ {[%clk 0:00:17.9]} 64... Kf4 {[%clk 0:00:04.3]} 65. Rc4+
{[%clk 0:00:16.6]} 65... Kf5 {[%clk 0:00:03.4]} 66. Rc1 {[%clk 0:00:14.5]} 66...
Ke4 {[%clk 0:00:00.2]} 67. Kf1 {[%clk 0:00:12.9]} 1-0

[Event "Live Chess"]
[Site "Chess.com"]
[Date "2024.06.02"]
[Round "-"]
[White "JoeyCage"]
[Black "Nazar-Makarchuk"]
[Result "1-0"]
[WhiteElo "2400"]
[BlackElo "1475"]
[TimeControl "300"]
[EndTime "7:16:45 PDT"]
[Termination "JoeyCage won by resignation"]

1. e4 {[%clk 0:04:57.4]} 1... d5 {[%clk 0:04:59]} 2. exd5 {[%clk 0:04:55.6]}
2... Qxd5 {[%clk 0:04:57.7]} 3. Qf3 {[%clk 0:04:54.6]} 3... Qxf3 {[%clk
0:04:56.8]} 4. Nxf3 {[%clk 0:04:53.8]} 4... Bg4 {[%clk 0:04:55.8]} 5. Ne5 {[%clk
0:04:49.8]} 5... Be6 {[%clk 0:04:53.9]} 6. Nc3 {[%clk 0:04:46.6]} 6... Nd7
{[%clk 0:04:53.4]} 7. Nxd7 {[%clk 0:04:44.9]} 7... Bxd7 {[%clk 0:04:51.8]} 8.
Nb5 {[%clk 0:04:43.5]} 8... Bxb5 {[%clk 0:04:49.9]} 9. Bxb5+ {[%clk 0:04:42.3]}
9... c6 {[%clk 0:04:49.5]} 10. Bc4 {[%clk 0:04:41.8]} 10... e6 {[%clk
0:04:48.1]} 11. d4 {[%clk 0:04:40.6]} 11... O-O-O {[%clk 0:04:47.5]} 12. c3
{[%clk 0:04:38]} 12... Nf6 {[%clk 0:04:47]} 13. O-O {[%clk 0:04:36.4]} 13... Bd6
{[%clk 0:04:41.9]} 14. f4 {[%clk 0:04:35]} 14... Nd5 {[%clk 0:04:36.9]} 15. f5
{[%clk 0:04:31.5]} 15... exf5 {[%clk 0:04:34.5]} 16. Rxf5 {[%clk 0:04:28.9]}
16... Nf6 {[%clk 0:04:29.6]} 17. Bg5 {[%clk 0:04:26.3]} 17... Be7 {[%clk
0:04:27]} 18. Bxf7 {[%clk 0:04:23.5]} 18... Rdf8 {[%clk 0:04:24.2]} 19. Be6+
{[%clk 0:04:19]} 19... Kc7 {[%clk 0:04:22.4]} 20. Raf1 {[%clk 0:04:18.3]} 20...
Nd5 {[%clk 0:04:11.3]} 21. Bxd5 {[%clk 0:04:14.1]} 21... Rxf5 {[%clk 0:04:09.8]}
22. Rxf5 {[%clk 0:04:11.6]} 22... Bxg5 {[%clk 0:04:08.4]} 23. Rxg5 {[%clk
0:04:10.5]} 23... cxd5 {[%clk 0:04:07.6]} 24. Rxd5 {[%clk 0:04:08.4]} 24... Re8
{[%clk 0:04:06.6]} 25. Kf2 {[%clk 0:04:06.6]} 25... Rf8+ {[%clk 0:04:03.7]} 26.
Ke2 {[%clk 0:04:05.4]} 26... Re8+ {[%clk 0:04:02.2]} 27. Kd2 {[%clk 0:04:04.5]}
27... Rf8 {[%clk 0:04:01.2]} 28. Re5 {[%clk 0:04:03.5]} 28... Rf2+ {[%clk
0:04:00.1]} 29. Re2 {[%clk 0:04:02.4]} 29... Rf7 {[%clk 0:03:59.1]} 30. Ke3
{[%clk 0:04:00.6]} 30... Kd6 {[%clk 0:03:58.6]} 31. c4 {[%clk 0:03:59.1]} 31...
Re7+ {[%clk 0:03:56.6]} 32. Kd3 {[%clk 0:03:57.6]} 32... Rf7 {[%clk 0:03:55.4]}
33. b4 {[%clk 0:03:55.5]} 33... b6 {[%clk 0:03:54.8]} 34. c5+ {[%clk 0:03:53.7]}
34... bxc5 {[%clk 0:03:53.6]} 35. bxc5+ {[%clk 0:03:52.9]} 35... Kc6 {[%clk
0:03:51.7]} 36. Kc4 {[%clk 0:03:51.5]} 36... g6 {[%clk 0:03:47.6]} 37. d5+
{[%clk 0:03:49.4]} 37... Kb7 {[%clk 0:03:46.2]} 38. Kb5 {[%clk 0:03:48]} 38...
Kc7 {[%clk 0:03:42.3]} 39. d6+ {[%clk 0:03:43.4]} 39... Kd7 {[%clk 0:03:41]} 40.
Re1 {[%clk 0:03:39]} 40... Rf2 {[%clk 0:03:35.7]} 41. Re7+ {[%clk 0:03:37]}
41... Kd8 {[%clk 0:03:33.7]} 42. Rxh7 {[%clk 0:03:34.9]} 42... Rxg2 {[%clk
0:03:32.4]} 43. Kc6 {[%clk 0:03:34.2]} 43... Re2 {[%clk 0:03:29.3]} 44. Rh8+
{[%clk 0:03:29.9]} 44... Re8 {[%clk 0:03:28.4]} 45. Rxe8+ {[%clk 0:03:29]} 45...
Kxe8 {[%clk 0:03:27.7]} 46. Kc7 {[%clk 0:03:28.9]} 1-0

[Event "Live Chess"]
[Site "Chess.com"]
[Date "2024.06.02"]
[Round "-"]
[White "Pablo_dmp"]
[Black "ClassyChameleon"]
[Result "1-0"]
[WhiteElo "1983"]
[BlackElo "1546"]
[TimeControl "300"]
[EndTime "7:17:00 PDT"]
[Termination "Pablo_dmp won by checkmate"]

1. e4 {[%clk 0:04:59.9]} 1... e5 {[%clk 0:04:59.1]} 2. Nf3 {[%clk 0:04:58.5]}
2... Nc6 {[%clk 0:04:58.8]} 3. Bc4 {[%clk 0:04:58]} 3... Nf6 {[%clk 0:04:58.3]}
4. Ng5 {[%clk 0:04:57.5]} 4... Nxe4 {[%clk 0:04:57.9]} 5. Bxf7+ {[%clk
0:04:54.4]} 5... Ke7 {[%clk 0:04:57.2]} 6. d4 {[%clk 0:04:53.2]} 6... h6 {[%clk
0:04:53.4]} 7. Nxe4 {[%clk 0:04:37.5]} 7... Kxf7 {[%clk 0:04:52.4]} 8. Qf3+
{[%clk 0:04:30.2]} 8... Kg8 {[%clk 0:04:51.1]} 9. d5 {[%clk 0:04:25.6]} 9... Nd4
{[%clk 0:04:50.1]} 10. Qd3 {[%clk 0:04:21.7]} 10... d6 {[%clk 0:04:41.9]} 11. c3
{[%clk 0:04:20.2]} 11... Nf5 {[%clk 0:04:38]} 12. O-O {[%clk 0:04:18.6]} 12...
Be7 {[%clk 0:04:32.3]} 13. f4 {[%clk 0:04:15.5]} 13... Bf6 {[%clk 0:04:29]} 14.
Nxf6+ {[%clk 0:04:13.5]} 14... Qxf6 {[%clk 0:04:26.5]} 15. fxe5 {[%clk
0:04:13.4]} 15... dxe5 {[%clk 0:04:25.7]} 16. Nd2 {[%clk 0:04:06.7]} 16... Bd7
{[%clk 0:04:20]} 17. Ne4 {[%clk 0:04:05.2]} 17... Qf7 {[%clk 0:04:13.2]} 18. c4
{[%clk 0:04:02.7]} 18... Rf8 {[%clk 0:04:11.4]} 19. Bd2 {[%clk 0:04:00]} 19...
Qe7 {[%clk 0:04:02.7]} 20. Rf2 {[%clk 0:03:55]} 20... Nd4 {[%clk 0:03:59.6]} 21.
Raf1 {[%clk 0:03:52.3]} 21... Rxf2 {[%clk 0:03:58]} 22. Rxf2 {[%clk 0:03:52.2]}
22... b6 {[%clk 0:03:42.8]} 23. a3 {[%clk 0:03:50.2]} 23... a5 {[%clk
0:03:41.5]} 24. b4 {[%clk 0:03:48.4]} 24... axb4 {[%clk 0:03:39.9]} 25. Bxb4
{[%clk 0:03:46.7]} 25... Qh4 {[%clk 0:03:35.9]} 26. Rf8+ {[%clk 0:03:40.6]}
26... Kh7 {[%clk 0:03:33.9]} 27. Nf6# {[%clk 0:03:40.5]} 1-0

[Event "Live Chess"]
[Site "Chess.com"]
[Date "2024.06.02"]
[Round "-"]
[White "Inglaterra"]
[Black "grillage"]
[Result "1-0"]
[WhiteElo "2050"]
[BlackElo "1870"]
[TimeControl "300"]
[EndTime "7:17:04 PDT"]
[Termination "Inglaterra won by resignation"]

1. e4 {[%clk 0:04:58.2]} 1... d5 {[%clk 0:04:58.3]} 2. exd5 {[%clk 0:04:56.6]}
2... Qxd5 {[%clk 0:04:57.1]} 3. Nf3 {[%clk 0:04:56.3]} 3... Bg4 {[%clk
0:04:55.3]} 4. Be2 {[%clk 0:04:54.5]} 4... Bxf3 {[%clk 0:04:54.4]} 5. Bxf3
{[%clk 0:04:53.4]} 5... Qe5+ {[%clk 0:04:53.7]} 6. Be2 {[%clk 0:04:48.5]} 6...
c5 {[%clk 0:04:52.2]} 7. O-O {[%clk 0:04:47.3]} 7... Nc6 {[%clk 0:04:50.7]} 8.
Bf3 {[%clk 0:04:40.6]} 8... Qc7 {[%clk 0:04:48.9]} 9. g3 {[%clk 0:04:36.1]} 9...
e6 {[%clk 0:04:47.6]} 10. Re1 {[%clk 0:04:18.8]} 10... Nf6 {[%clk 0:04:39.1]}
11. Nc3 {[%clk 0:04:17.6]} 11... Be7 {[%clk 0:04:37.3]} 12. d3 {[%clk
0:04:16.3]} 12... O-O {[%clk 0:04:36]} 13. Bf4 {[%clk 0:04:14.6]} 13... Bd6
{[%clk 0:04:33.3]} 14. Nb5 {[%clk 0:04:12.8]} 1-0

[Event "Live Chess"]
[Site "Chess.com"]
[Date "2024.06.02"]
[Round "-"]
[White "CheckThis4"]
[Black "stevochess11"]
[Result "1-0"]
[WhiteElo "2681"]
[BlackElo "1691"]
[TimeControl "300"]
[EndTime "7:17:14 PDT"]
[Termination "CheckThis4 won by checkmate"]

1. d4 {[%clk 0:04:58.4]} 1... Nf6 {[%clk 0:04:58]} 2. Nc3 {[%clk 0:04:58]} 2...
d5 {[%clk 0:04:52.3]} 3. e4 {[%clk 0:04:57.6]} 3... dxe4 {[%clk 0:04:50.7]} 4.
f3 {[%clk 0:04:55.5]} 4... c5 {[%clk 0:04:48.6]} 5. d5 {[%clk 0:04:51.5]} 5...
exf3 {[%clk 0:04:45.7]} 6. Nxf3 {[%clk 0:04:48.9]} 6... Nbd7 {[%clk 0:04:43.8]}
7. Bg5 {[%clk 0:04:40]} 7... b6 {[%clk 0:04:39.2]} 8. Bb5 {[%clk 0:04:38.3]}
8... e6 {[%clk 0:04:29.6]} 9. Qe2 {[%clk 0:04:35.9]} 9... Be7 {[%clk 0:04:24]}
10. O-O-O {[%clk 0:04:33.4]} 10... O-O {[%clk 0:04:18.1]} 11. d6 {[%clk
0:04:32.2]} 11... Bxd6 {[%clk 0:04:12.5]} 12. Rxd6 {[%clk 0:04:32.1]} 12... h6
{[%clk 0:04:09.8]} 13. Bxf6 {[%clk 0:04:27.6]} 13... gxf6 {[%clk 0:04:07.7]} 14.
Bxd7 {[%clk 0:04:25.4]} 14... Bxd7 {[%clk 0:04:04.1]} 15. Rhd1 {[%clk
0:04:24.2]} 15... Qc7 {[%clk 0:03:46.5]} 16. Rxd7 {[%clk 0:04:22.2]} 16... Qc6
{[%clk 0:03:43.7]} 17. Qe3 {[%clk 0:04:18.3]} 17... Kh7 {[%clk 0:03:40.3]} 18.
Ne4 {[%clk 0:04:16.2]} 18... Qa4 {[%clk 0:03:36]} 19. Nxf6+ {[%clk 0:04:13.3]}
19... Kg6 {[%clk 0:03:34]} 20. Ne5+ {[%clk 0:03:56.7]} 20... Kxf6 {[%clk
0:03:26]} 21. Rf1+ {[%clk 0:03:54.8]} 21... Kg7 {[%clk 0:03:24.4]} 22. Rfxf7+
{[%clk 0:03:53.1]} 22... Rxf7 {[%clk 0:03:23]} 23. Rxf7+ {[%clk 0:03:52.7]}
23... Kg8 {[%clk 0:03:21.9]} 24. Qg3+ {[%clk 0:03:51]} 24... Kh8 {[%clk
0:03:20.1]} 25. Qg7# {[%clk 0:03:49.5]} 1-0

[Event "Live Chess"]
[Site "Chess.com"]
[Date "2024.06.02"]
[Round "-"]
[White "wadsy27"]
[Black "KeithArkell"]
[Result "1-0"]
[WhiteElo "2598"]
[BlackElo "2419"]
[TimeControl "300"]
[EndTime "7:17:16 PDT"]
[Termination "wadsy27 won by resignation"]

1. c4 {[%clk 0:04:54.5]} 1... b6 {[%clk 0:04:57.6]} 2. d4 {[%clk 0:04:52.6]}
2... Bb7 {[%clk 0:04:57.1]} 3. Nc3 {[%clk 0:04:52]} 3... Nf6 {[%clk 0:04:56.3]}
4. d5 {[%clk 0:04:50.6]} 4... g6 {[%clk 0:04:54.8]} 5. Nf3 {[%clk 0:04:47.4]}
5... Bg7 {[%clk 0:04:53.7]} 6. g3 {[%clk 0:04:47.1]} 6... O-O {[%clk 0:04:52.5]}
7. Bg2 {[%clk 0:04:46.8]} 7... c6 {[%clk 0:04:52]} 8. O-O {[%clk 0:04:45.7]}
8... cxd5 {[%clk 0:04:51.4]} 9. cxd5 {[%clk 0:04:44.5]} 9... b5 {[%clk
0:04:48.8]} 10. a3 {[%clk 0:04:40.9]} 10... Na6 {[%clk 0:04:47.2]} 11. Nd4
{[%clk 0:04:35.3]} 11... Nc7 {[%clk 0:04:43.5]} 12. e4 {[%clk 0:04:31.7]} 12...
a6 {[%clk 0:04:42.7]} 13. Bf4 {[%clk 0:04:27.1]} 13... Nh5 {[%clk 0:04:39.3]}
14. Be3 {[%clk 0:04:25.5]} 14... e6 {[%clk 0:04:35.1]} 15. Rc1 {[%clk 0:04:11]}
15... Re8 {[%clk 0:04:31]} 16. d6 {[%clk 0:04:04.5]} 1-0

[Event "Live Chess"]
[Site "Chess.com"]
[Date "2024.06.02"]
[Round "-"]
[White "GrahamCuthbert"]
[Black "Pandreq"]
[Result "1-0"]
[WhiteElo "1049"]
[BlackElo "1237"]
[TimeControl "300"]
[EndTime "7:17:17 PDT"]
[Termination "GrahamCuthbert won by resignation"]

1. d4 {[%clk 0:04:57.7]} 1... d5 {[%clk 0:04:58.9]} 2. Bf4 {[%clk 0:04:56.7]}
2... Nf6 {[%clk 0:04:57.4]} 3. Nf3 {[%clk 0:04:55.1]} 3... c6 {[%clk 0:04:56.3]}
4. e3 {[%clk 0:04:54.2]} 4... Bg4 {[%clk 0:04:54.2]} 5. c4 {[%clk 0:04:49.1]}
5... e6 {[%clk 0:04:52.7]} 6. cxd5 {[%clk 0:04:46.3]} 6... exd5 {[%clk
0:04:48.8]} 7. Nc3 {[%clk 0:04:41.8]} 7... Bb4 {[%clk 0:04:45.3]} 8. a3 {[%clk
0:04:39]} 8... Ba5 {[%clk 0:04:43.4]} 9. b4 {[%clk 0:04:36.3]} 9... Bc7 {[%clk
0:04:42.3]} 10. Bg3 {[%clk 0:04:31.4]} 10... Bxg3 {[%clk 0:04:37.5]} 11. hxg3
{[%clk 0:04:28.8]} 11... Ne4 {[%clk 0:04:32]} 12. Qc2 {[%clk 0:04:11.2]} 12...
Bf5 {[%clk 0:04:21.4]} 13. Bd3 {[%clk 0:03:59.3]} 13... Qe7 {[%clk 0:04:07.8]}
14. Ne5 {[%clk 0:03:55]} 14... f6 {[%clk 0:03:59.1]} 15. Nf3 {[%clk 0:03:49.5]}
15... O-O {[%clk 0:03:48.5]} 16. Rh5 {[%clk 0:03:38.8]} 16... Bg6 {[%clk
0:03:46.3]} 17. Rh2 {[%clk 0:03:35.1]} 17... Qf7 {[%clk 0:03:42.6]} 18. Nh4
{[%clk 0:03:26.4]} 18... f5 {[%clk 0:03:40.2]} 19. Ke2 {[%clk 0:03:15.5]} 19...
Nd7 {[%clk 0:03:29.7]} 20. Nf3 {[%clk 0:03:14.4]} 20... Rae8 {[%clk 0:03:26.9]}
21. Rah1 {[%clk 0:03:04.3]} 21... Qe6 {[%clk 0:03:05.5]} 22. Bxe4 {[%clk
0:02:55.6]} 22... fxe4 {[%clk 0:02:58.6]} 23. Ng5 {[%clk 0:02:53.1]} 23... Qf6
{[%clk 0:02:52.1]} 24. Nxh7 {[%clk 0:02:26.4]} 24... Qxf2+ {[%clk 0:02:47.6]}
25. Kd1 {[%clk 0:02:24.7]} 25... Bxh7 {[%clk 0:02:38.4]} 26. Qxf2 {[%clk
0:02:20.1]} 26... Rxf2 {[%clk 0:02:37.1]} 27. Rxh7 {[%clk 0:02:16.9]} 27... Rxg2
{[%clk 0:02:31.9]} 28. Rh8+ {[%clk 0:02:13.2]} 28... Kf7 {[%clk 0:02:30.7]} 29.
R8h3 {[%clk 0:01:56.3]} 29... Nf6 {[%clk 0:02:25.7]} 30. Rf1 {[%clk 0:01:52.1]}
30... Ke6 {[%clk 0:02:20.4]} 31. Ne2 {[%clk 0:01:49.6]} 31... Ng4 {[%clk
0:02:11.6]} 32. Nf4+ {[%clk 0:01:41.3]} 32... Kd7 {[%clk 0:02:05.4]} 33. Nxg2
{[%clk 0:01:39.7]} 33... Nxe3+ {[%clk 0:02:04.4]} 34. Nxe3 {[%clk 0:01:38.1]}
1-0